fUSD/lending_fUSD_20250420
["ID","MTS","AMOUNT","RATE_DAILY","PERIOD"]
[358447540,1745159449995,-515.33024878,0.00047721,30]
[358447541,1745159450005,-155.66530785,0.00047721,120]
[358447542,1745159450014,-1897.72597564,0.00047721,120]
[358447543,1745159450024,-175.39329298,0.00047721,30]
[358447544,1745159450034,-218.64261785,0.00047721,120]
[358447545,1745159450043,-6767.12873164,0.00047721,4]
[358447546,1745159450052,-50299.77541569,0.00047721,30]
[358447547,1745159450063,-1521.84517362,0.00047721,30]
[358447548,1745159450072,-986.80234905,0.00047721,120]
[358447549,1745159450081,-5193.49676912,0.00047721,4]
[358447550,1745159450091,-367.54575953,0.00047721,120]
[358447551,1745159450100,-380.1287292,0.00047721,120]
[358447552,1745159450109,-178.03002089,0.00047721,120]
[358447553,1745159450119,-150.0,0.00047721,2]
[358447554,1745159450128,-198.93,0.00047721,120]
[358447555,1745159450137,-1000.0,0.00047721,30]
[358447556,1745159450147,-150.0,0.00047721,30]
[358447557,1745159450157,-172220.94710407,0.00047721,30]
[358447558,1745159450167,-500.0,0.00047721,120]
[358447559,1745159450176,-500.0,0.00047721,120]
[358447560,1745159450186,-500.0,0.00047721,120]
[358447561,1745159450195,-500.0,0.00047721,120]
[358447562,1745159450205,-500.0,0.00047721,120]
[358447563,1745159450215,-254.13723284,0.00047721,120]
[358447564,1745159450226,-461.57556549,0.00047721,2]
[358447573,1745160631579,-250.0,0.00022729,2]
[358447574,1745160631589,-540.74665749,0.00030611,2]
[358447575,1745160631598,-200.0,0.00031544,6]
[358447577,1745160631608,-187.86968766,0.00036614,2]
[358447579,1745160631617,-250.0,0.00036714,2]
[358447580,1745160631626,-155.0,0.000381,3]
[358447581,1745160631635,-3968.63211848,0.000393,5]
[358447582,1745160631649,-726.43488742,0.000393,5]
[358447583,1745160631660,-649.36999909,0.000393,5]
[358447584,1745160631707,-217.56299501,0.000393,5]
[358447585,1745160631716,-2710.80458988,0.00039978,2]
[358447586,1745160631726,-304.0,0.00040897,5]
[358447587,1745160631735,-300.0,0.00040898,5]
[358447588,1745160631745,-6904.01,0.00040898,15]
[358447589,1745160631754,-150.99,0.00040898,2]
[358447590,1745160631764,-150.0,0.00041095,120]
[358447591,1745160631774,-500.0,0.00041288,2]
[358447592,1745160631783,-150.0,0.00042465,120]
[358447593,1745160631793,-704.46049497,0.00042677,2]
[358447594,1745160631803,-570.84,0.00043462,2]
[358447595,1745160631812,-150.0,0.00043835,120]
[358447596,1745160631821,-246.94945882,0.00043846,2]
[358447597,1745160631831,-153.36,0.00043888,30]
[358447598,1745160631841,-1390.2217,0.00043888,30]
[358447599,1745160631851,-158.12,0.00044,2]
[358447600,1745160631861,-1815.98498522,0.00044388,2]
[358447601,1745160631870,-684.0,0.00045,90]
[358447602,1745160631879,-150.0,0.00045205,120]
[358447603,1745160631889,-700.0,0.00045248,2]
[358447604,1745160631899,-187.04943529,0.00045685,30]
[358447605,1745160631908,-684.0,0.00045685,90]
[358447606,1745160631918,-570.84,0.00045726,2]
[358447607,1745160631927,-1000.0,0.00045782,120]
[358447608,1745160631936,-684.0,0.00045959,90]
[358447609,1745160631946,-12435.84,0.00046199,2]
[358447610,1745160631957,-2079.09509338,0.000462,120]
[358447611,1745160631966,-684.0,0.00046233,90]
[358447612,1745160631975,-172.86,0.00046238,2]
[358447614,1745160631985,-1000.0,0.00046469,2]
[358447616,1745160631994,-684.0,0.00046507,90]
[358447617,1745160632003,-150.0,0.00046575,120]
[358447619,1745160632012,-592.09,0.00046601,120]
[358447621,1745160632021,-300.0,0.00046602,120]
[358447623,1745160632030,-684.0,0.00046781,90]
[358447625,1745160632039,-500.0,0.00046867,10]
[358447627,1745160632049,-514.90291555,0.00046867,2]
[358447629,1745160632058,-854.08,0.00046941,2]
[358447631,1745160632067,-344.169,0.00047,79]
[358447633,1745160632077,-250.0,0.00047,30]
[358447635,1745160632088,-1000.0,0.00047,30]
[358447637,1745160632097,-250.0,0.000471,30]
[358447639,1745160632107,-500.0,0.00047123,120]
[358447641,1745160632117,-500.0,0.00047123,120]
[358447643,1745160632127,-500.0,0.00047123,120]
[358447645,1745160632136,-500.0,0.00047123,120]
[358447647,1745160632145,-500.0,0.00047123,120]
[358447649,1745160632156,-500.0,0.00047123,120]
[358447651,1745160632165,-500.0,0.00047123,120]
[358447653,1745160632175,-500.0,0.00047123,120]
[358447655,1745160632184,-500.0,0.00047123,120]
[358447657,1745160632194,-500.0,0.00047123,120]
[358447659,1745160632204,-500.0,0.00047123,120]
[358447661,1745160632214,-500.0,0.00047123,120]
[358447663,1745160632223,-500.0,0.00047123,120]
[358447665,1745160632232,-500.0,0.00047123,120]
[358447667,1745160632242,-500.0,0.00047123,120]
[358447669,1745160632251,-629.01098125,0.00047123,120]
[358447671,1745160632260,-250.0,0.000472,30]
[358447673,1745160632269,-250.0,0.000473,30]
[358447675,1745160632278,-166.66,0.00047479,2]
[358447677,1745160632287,-996.0,0.000476,30]
[358447679,1745160632296,-983.01,0.00047612,30]
[358447681,1745160632304,-1592.64,0.00047612,30]
[358447683,1745160632314,-452.89,0.00047612,30]
[358447685,1745160632323,-796.32,0.00047612,30]
[358447687,1745160632332,-452.89,0.00047612,30]
[358447689,1745160632341,-796.32,0.00047612,30]
[358447691,1745160632351,-796.32,0.00047612,30]
[358447693,1745160632361,-452.89,0.00047612,30]
[358447695,1745160632370,-796.32,0.00047612,30]
[358447697,1745160632379,-452.89,0.00047612,30]
[358447699,1745160632389,-452.89,0.00047612,30]
[358447701,1745160632398,-452.89,0.00047612,30]
[358447703,1745160632408,-796.32,0.00047612,30]
[358447704,1745160632417,-500.0,0.00047621,2]
[358447706,1745160632427,-1360.1493,0.00047636,2]
[358447708,1745160632436,-500.0,0.00047652,120]
[358447710,1745160632445,-684.0,0.00047682,90]
[358447712,1745160632455,-1041.97,0.000477,120]
[358447714,1745160632464,-1556.50509513,0.0004772,120]
[358447717,1745160632474,-591.437277,0.00047721,7]
[358447718,1745160632483,-415.79447952,0.00047721,7]
[358447720,1745160632492,-152.1385104,0.00047721,15]
[358447722,1745160632501,-168.22591384,0.00047735,120]
[358447724,1745160632510,-500.0,0.00047735,120]
[358447726,1745160632520,-500.0,0.00047735,120]
[358447729,1745160632529,-500.0,0.00047735,120]
[358447731,1745160632538,-500.0,0.00047735,120]
[358447732,1745160632547,-500.0,0.00047735,120]
[358447734,1745160632557,-500.0,0.00047735,120]
[358447736,1745160632566,-500.0,0.00047735,120]
[358447738,1745160632575,-500.0,0.00047735,120]
[358447740,1745160632584,-500.0,0.00047735,120]
[358447742,1745160632594,-500.0,0.00047735,120]
[358447744,1745160632603,-500.0,0.00047735,120]
[358447746,1745160632612,-500.0,0.00047735,120]
[358447748,1745160632621,-500.0,0.00047735,120]
[358447750,1745160632631,-500.0,0.00047735,120]
[358447752,1745160632644,-500.0,0.00047735,120]
[358447754,1745160632653,-442.52170768,0.00047735,120]
[358447756,1745160632663,-500.0,0.00047735,120]
[358447758,1745160632672,-500.0,0.00047735,120]
[358447760,1745160632683,-500.0,0.00047735,120]
[358447762,1745160632693,-500.0,0.00047735,120]
[358447764,1745160632703,-500.0,0.00047735,120]
[358447766,1745160632712,-762.42443451,0.00047738,2]
[358447768,1745160632722,-285.0,0.00047738,30]
[358447770,1745160632731,-48434.20732021,0.00047738,120]
[358447771,1745160632740,-1500.0,0.00047738,120]
[358447772,1745160632750,-1500.0,0.00047738,120]
[358447773,1745160632760,-1000.0,0.00047738,120]
[358447774,1745160632770,-2258.03,0.00047738,60]
[358447775,1745160632779,-500.0,0.00047738,120]
[358447776,1745160632787,-529.51138379,0.00047738,120]
[358447777,1745160632796,-500.0,0.00047738,120]
[358447778,1745160632805,-500.0,0.00047738,120]
[358447779,1745160632814,-500.0,0.00047738,120]
[358447780,1745160632823,-403.49543327,0.00047738,120]
[358447781,1745160632832,-200.0,0.00047738,120]
[358447782,1745160632841,-207.4,0.00047738,120]
[358447783,1745160632850,-215.0738,0.00047738,120]
[358447784,1745160632859,-223.0315306,0.00047738,120]
[358447785,1745160632868,-231.28369723,0.00047738,120]
[358447787,1745160632876,-239.84119403,0.00047738,120]
[358447789,1745160632886,-248.71531821,0.00047738,120]
[358447791,1745160632895,-257.91778498,0.00047738,120]
[358447793,1745160632905,-267.46074303,0.00047738,120]
[358447795,1745160632914,-277.35679052,0.00047738,120]
[358447797,1745160632923,-287.61899177,0.00047738,120]
[358447799,1745160632932,-298.26089446,0.00047738,120]
[358447801,1745160632941,-309.29654756,0.00047738,120]
[358447803,1745160632950,-320.74051982,0.00047738,120]
[358447805,1745160632959,-332.60791905,0.00047738,120]
[358447807,1745160632968,-344.91441206,0.00047738,120]
[358447809,1745160632978,-357.6762453,0.00047738,120]
[358447811,1745160632987,-370.91026638,0.00047738,120]
[358447813,1745160632996,-384.63394623,0.00047738,120]
[358447815,1745160633005,-384.63394623,0.00047738,120]
[358447817,1745160633015,-5810.0,0.00047738,50]
[358447819,1745160633025,-1124.2896,0.00047747,2]
[358447821,1745160633034,-2500.0,0.00047756,2]
[358447823,1745160633043,-12500.0,0.00047803,7]
[358447825,1745160633053,-1030.5716969,0.00047811,60]
[358447827,1745160633062,-12500.0,0.00047812,7]
[358447829,1745160633072,-12500.0,0.00047821,7]
[358447831,1745160633081,-12500.0,0.0004783,7]
[358447833,1745160633092,-1030.5716969,0.00047837,60]
[358447835,1745160633102,-12500.0,0.00047838,7]
[358447837,1745160633111,-12500.0,0.00047847,7]
[358447839,1745160633120,-12500.0,0.00047856,7]
[358447840,1745160633130,-500.0,0.00047873,10]
[358447842,1745160633139,-1030.5716969,0.00047899,60]
[358447844,1745160633148,-676.42658982,0.000479,120]
[358447846,1745160633158,-150.0,0.00047945,120]
[358447848,1745160633167,-300.0,0.00047971,120]
[358447850,1745160633177,-570.84,0.0004799,2]
[358447853,1745160633186,-504.0311074,0.00048,120]
[358447855,1745160633196,-162.0,0.00048,120]
[358447857,1745160633205,-300.0,0.00048,120]
[358447859,1745160633215,-856.74,0.00048,42]
[358447860,1745160633224,-856.74,0.00048,42]
[358447862,1745160633234,-856.74,0.00048,42]
[358447864,1745160633243,-856.74,0.00048,42]
[358447866,1745160633252,-856.74,0.00048,42]
[358447868,1745160633263,-856.74,0.00048,42]
[358447870,1745160633272,-856.74,0.00048,42]
[358447872,1745160633283,-856.74,0.00048,42]
[358447873,1745160633292,-856.74,0.00048,42]
[358447875,1745160633302,-856.74,0.00048,42]
[358447877,1745160633312,-856.74,0.00048,42]
[358447879,1745160633322,-856.74,0.00048,42]
[358447881,1745160633331,-6279.3442491,0.00048114,2]
[358447883,1745160633341,-299.45,0.0004818,2]
[358447885,1745160633351,-259.02,0.000482,2]
[358447887,1745160633362,-2000.0,0.000483,2]
[358447889,1745160633372,-203.3765,0.00048309,120]
[358447891,1745160633382,-155.01950002,0.0004835,2]
[358447893,1745160633392,-700.0,0.0004837,3]
[358447895,1745160633401,-700.0,0.0004837,3]
[358447897,1745160633411,-700.0,0.0004837,3]
[358447899,1745160633420,-1274.68224529,0.0004837,3]
[358447901,1745160633431,-600.0,0.00048465,30]
[358447903,1745160633441,-500.0,0.00048466,30]
[358447905,1745160633450,-600.0,0.00048565,30]
[358447907,1745160633460,-1030.5716969,0.00048569,60]
[358447909,1745160633469,-243.05,0.0004857,30]
[358447910,1745160633600,-796.32,0.0004857,30]
[358447911,1745160633610,-796.32,0.0004857,30]
[358447912,1745160633619,-507.42,0.0004857,30]
[358447913,1745160633629,-306.15756648,0.0004867,3]
[358447914,1745160633642,-500.0,0.00048788,30]
[358447915,1745160633651,-500.0,0.00048893,30]
[358447916,1745160633661,-600.0,0.00048894,30]
[358447917,1745160633670,-600.0,0.00048911,30]
[358447918,1745160633680,-600.0,0.0004896,30]
[358447919,1745160633689,-600.0,0.00048962,30]
[358447920,1745160633699,-600.0,0.00049021,30]
[358447921,1745160633708,-500.0,0.00049037,30]
[358447922,1745160633717,-166.66,0.00049046,2]
[358447923,1745160633727,-152.13851039,0.00049074,15]
[358447924,1745160633736,-760.0,0.000491,30]
[358447925,1745160633746,-702.0,0.000491,30]
[358447926,1745160633755,-1030.5716969,0.00049109,60]
[358447927,1745160633764,-35000.0,0.0004911,30]
[358447928,1745160633774,-500.0,0.00049149,30]
[358447929,1745160633783,-152.0,0.00049195,3]
[358447930,1745160633793,-500.0,0.00049217,30]
[358447931,1745160633802,-342.25311896,0.00049238,30]
[358447932,1745160633811,-271.9,0.00049315,120]
[358447933,1745160633821,-155.0,0.00049315,2]
[358447934,1745160633831,-508.12350322,0.00049443,30]
[358447935,1745160633841,-500.0,0.00049464,30]
[358447936,1745160633851,-533.0,0.00049587,7]
[358447937,1745160633861,-1030.5716969,0.00049588,90]
[358447938,1745160633871,-684.0,0.00049589,120]
[358447939,1745160633881,-174.0,0.00049589,60]
[358447940,1745160633891,-174.0,0.00049589,60]
[358447941,1745160633900,-174.0,0.00049589,60]
[358447942,1745160633910,-174.0,0.00049589,60]
[358447943,1745160633919,-174.0,0.00049589,60]
[358447944,1745160633929,-174.0,0.00049589,60]
[358447945,1745160633939,-174.0,0.00049589,60]
[358447946,1745160633948,-174.0,0.00049589,60]
[358447947,1745160633958,-174.0,0.00049589,60]
[358447948,1745160633968,-174.0,0.00049589,60]
[358447949,1745160633977,-174.0,0.00049589,60]
[358447950,1745160633987,-174.0,0.00049589,60]
[358447951,1745160633996,-174.0,0.00049589,60]
[358447952,1745160634005,-174.0,0.00049589,60]
[358447953,1745160634015,-174.0,0.00049589,60]
[358447954,1745160634025,-174.0,0.00049589,60]
[358447955,1745160634034,-174.0,0.00049589,60]
[358447956,1745160634043,-153.0,0.00049589,60]
[358447957,1745160634053,-153.0,0.00049589,60]
[358447958,1745160634063,-153.0,0.00049589,60]
[358447959,1745160634073,-153.0,0.00049589,60]
[358447960,1745160634082,-153.0,0.00049589,60]
[358447961,1745160634092,-153.0,0.00049589,60]
[358447962,1745160634101,-153.0,0.00049589,60]
[358447963,1745160634111,-153.0,0.00049589,60]
[358447964,1745160634121,-153.0,0.00049589,60]
[358447965,1745160634131,-174.0,0.00049589,60]
[358447966,1745160634142,-174.0,0.00049589,60]
[358447967,1745160634152,-174.0,0.00049589,60]
[358447968,1745160634162,-174.0,0.00049589,60]
[358447969,1745160634172,-174.0,0.00049589,60]
[358447970,1745160634182,-174.0,0.00049589,60]
[358447971,1745160634191,-174.0,0.00049589,60]
[358447972,1745160634200,-174.0,0.00049589,60]
[358447973,1745160634209,-174.0,0.00049589,60]
[358447974,1745160634219,-174.0,0.00049589,60]
[358447975,1745160634229,-174.0,0.00049589,60]
[358447976,1745160634239,-174.0,0.00049589,60]
[358447977,1745160634248,-174.0,0.00049589,60]
[358447978,1745160634262,-174.0,0.00049589,60]
[358447979,1745160634271,-153.0,0.00049589,60]
[358447980,1745160634280,-153.0,0.00049589,60]
[358447981,1745160634290,-153.0,0.00049589,60]
[358447982,1745160634299,-153.0,0.00049589,60]
[358447983,1745160634308,-153.0,0.00049589,60]
[358447984,1745160634317,-153.0,0.00049589,60]
[358447985,1745160634326,-153.0,0.00049589,60]
[358447986,1745160634336,-153.0,0.00049589,60]
[358447987,1745160634345,-174.0,0.00049589,60]
[358447988,1745160634355,-174.0,0.00049589,60]
[358447989,1745160634364,-174.0,0.00049589,60]
[358447990,1745160634374,-174.0,0.00049589,60]
[358447991,1745160634384,-174.0,0.00049589,60]
[358447992,1745160634397,-174.0,0.00049589,60]
[358447993,1745160634406,-174.0,0.00049589,60]
[358447994,1745160634415,-174.0,0.00049589,60]
[358447995,1745160634425,-174.0,0.00049589,60]
[358447996,1745160634435,-174.0,0.00049589,60]
[358447997,1745160634444,-174.0,0.00049589,60]
[358447998,1745160634453,-174.0,0.00049589,60]
[358447999,1745160634464,-174.0,0.00049589,60]
[358448000,1745160634473,-174.0,0.00049589,60]
[358448001,1745160634483,-153.0,0.00049589,60]
[358448002,1745160634492,-153.0,0.00049589,60]
[358448003,1745160634502,-153.0,0.00049589,60]
[358448004,1745160634512,-153.0,0.00049589,60]
[358448005,1745160634521,-153.0,0.00049589,60]
[358448006,1745160634531,-153.0,0.00049589,60]
[358448007,1745160634542,-153.0,0.00049589,60]
[358448008,1745160634551,-153.0,0.00049589,60]
[358448009,1745160634561,-174.0,0.00049589,60]
[358448010,1745160634571,-174.0,0.00049589,60]
[358448011,1745160634581,-174.0,0.00049589,60]
[358448012,1745160634590,-174.0,0.00049589,60]
[358448013,1745160634600,-174.0,0.00049589,60]
[358448014,1745160634610,-174.0,0.00049589,60]
[358448015,1745160634620,-174.0,0.00049589,60]
[358448016,1745160634629,-174.0,0.00049589,60]
[358448017,1745160634640,-174.0,0.00049589,60]
[358448018,1745160634652,-174.0,0.00049589,60]
[358448019,1745160634661,-174.0,0.00049589,60]
[358448020,1745160634671,-174.0,0.00049589,60]
[358448021,1745160634681,-174.0,0.00049589,60]
[358448022,1745160634691,-174.0,0.00049589,60]
[358448023,1745160634700,-153.0,0.00049589,60]
[358448024,1745160634710,-153.0,0.00049589,60]
[358448025,1745160634720,-153.0,0.00049589,60]
[358448026,1745160634731,-153.0,0.00049589,60]
[358448027,1745160634741,-153.0,0.00049589,60]
[358448028,1745160634750,-153.0,0.00049589,60]
[358448029,1745160634759,-153.0,0.00049589,60]
[358448030,1745160634768,-153.0,0.00049589,60]
[358448031,1745160634778,-174.0,0.00049589,60]
[358448032,1745160634788,-174.0,0.00049589,60]
[358448033,1745160634798,-174.0,0.00049589,60]
[358448034,1745160634807,-174.0,0.00049589,60]
[358448035,1745160634817,-174.0,0.00049589,60]
[358448036,1745160634826,-174.0,0.00049589,60]
[358448037,1745160634836,-174.0,0.00049589,60]
[358448038,1745160634847,-174.0,0.00049589,60]
[358448039,1745160634856,-174.0,0.00049589,60]
[358448040,1745160634866,-174.0,0.00049589,60]
[358448041,1745160634875,-174.0,0.00049589,60]
[358448042,1745160634885,-174.0,0.00049589,60]
[358448043,1745160634894,-174.0,0.00049589,60]
[358448044,1745160634903,-174.0,0.00049589,60]
[358448045,1745160634913,-153.0,0.00049589,60]
[358448046,1745160634922,-153.0,0.00049589,60]
[358448047,1745160634932,-153.0,0.00049589,60]
[358448048,1745160634941,-153.0,0.00049589,60]
[358448049,1745160634950,-153.0,0.00049589,60]
[358448050,1745160634959,-153.0,0.00049589,60]
[358448051,1745160634969,-153.0,0.00049589,60]
[358448052,1745160634978,-153.0,0.00049589,60]
[358448053,1745160634987,-174.0,0.00049589,60]
[358448054,1745160634997,-174.0,0.00049589,60]
[358448055,1745160635006,-174.0,0.00049589,60]
[358448056,1745160635015,-174.0,0.00049589,60]
[358448057,1745160635025,-174.0,0.00049589,60]
[358448058,1745160635034,-174.0,0.00049589,60]
[358448059,1745160635043,-174.0,0.00049589,60]
[358448060,1745160635053,-174.0,0.00049589,60]
[358448061,1745160635063,-174.0,0.00049589,60]
[358448062,1745160635072,-174.0,0.00049589,60]
[358448063,1745160635081,-174.0,0.00049589,60]
[358448064,1745160635091,-174.0,0.00049589,60]
[358448065,1745160635100,-174.0,0.00049589,60]
[358448066,1745160635110,-174.0,0.00049589,60]
[358448067,1745160635120,-153.0,0.00049589,60]
[358448068,1745160635129,-153.0,0.00049589,60]
[358448069,1745160635138,-153.0,0.00049589,60]
[358448070,1745160635148,-153.0,0.00049589,60]
[358448071,1745160635157,-153.0,0.00049589,60]
[358448072,1745160635166,-153.0,0.00049589,60]
[358448073,1745160635175,-153.0,0.00049589,60]
[358448074,1745160635185,-153.0,0.00049589,60]
[358448075,1745160635195,-174.0,0.00049589,60]
[358448076,1745160635204,-174.0,0.00049589,60]
[358448077,1745160635214,-174.0,0.00049589,60]
[358448078,1745160635223,-174.0,0.00049589,60]
[358448079,1745160635232,-174.0,0.00049589,60]
[358448080,1745160635241,-174.0,0.00049589,60]
[358448081,1745160635250,-174.0,0.00049589,60]
[358448082,1745160635259,-174.0,0.00049589,60]
[358448083,1745160635269,-174.0,0.00049589,60]
[358448084,1745160635278,-174.0,0.00049589,60]
[358448085,1745160635287,-153.0,0.00049589,60]
[358448086,1745160635296,-153.0,0.00049589,60]
[358448087,1745160635306,-153.0,0.00049589,60]
[358448088,1745160635316,-153.0,0.00049589,60]
[358448089,1745160635326,-970.44,0.00049605,30]
[358448090,1745160635336,-600.0,0.00049667,30]
[358448091,1745160635346,-802.97768606,0.000497,15]
[358448092,1745160635356,-600.0,0.00049766,30]
[358448093,1745160635366,-600.0,0.0004977,30]
[358448094,1745160635376,-210.63844901,0.000498,30]
[358448095,1745160635387,-500.0,0.00049808,30]
[358448096,1745160635398,-1000.0,0.0005,30]
[358448097,1745160635408,-500.0,0.0005,120]
[358448098,1745160635417,-1102.31475887,0.0005,120]
[358448099,1745160635426,-1715.5201626,0.0005,120]
[358448100,1745160635436,-154.96128447,0.0005,30]
[358448101,1745160635446,-3317.99999901,0.0005,5]
[358448102,1745160635455,-500.0,0.0005,30]
[358448103,1745160635465,-300.0,0.0005,120]
[358448104,1745160635474,-2000.0,0.0005,120]
[358448105,1745160635483,-851.40734791,0.0005,12]
[358448106,1745160635493,-504.37142018,0.0005,120]
[358448107,1745160635503,-500.0,0.00050004,60]
[358448108,1745160635513,-685.0,0.00050066,120]
[358448109,1745160635523,-500.0,0.00050175,60]
[358448110,1745160635534,-600.0,0.00050228,60]
[358448111,1745160635544,-570.84,0.00050253,2]
[358448112,1745160635554,-600.0,0.00050276,60]
[358448113,1745160635564,-500.0,0.00050318,60]
[358448114,1745160635574,-757.0601,0.00050327,120]
[358448115,1745160635584,-500.0,0.00050373,60]
[358448116,1745160635597,-600.0,0.00050417,60]
[358448117,1745160635606,-152.13851039,0.00050427,15]
[358448118,1745160635726,-500.0,0.00050527,60]
[358448119,1745160635737,-452.89,0.00050563,30]
[358448120,1745160635747,-500.0,0.00050575,60]
[358448121,1745160635758,-500.0,0.00050593,60]
[358448122,1745160635768,-777.08,0.000506,7]
[358448123,1745160635778,-166.66,0.00050614,2]
[358448124,1745160635788,-500.0,0.00050659,60]
[358448125,1745160635798,-500.0,0.00050724,60]
[358448126,1745160635808,-802.97768604,0.00050833,15]
[358448127,1745160635818,-600.0,0.00050838,60]
[358448128,1745160635827,-500.0,0.00050876,60]
[358448129,1745160635837,-600.0,0.00050888,60]
[358448130,1745160635846,-600.0,0.00050959,60]
[358448131,1745160635855,-500.0,0.0005099,60]
[358448132,1745160635865,-500.0,0.00050996,60]
[358448133,1745160635875,-1631.73,0.00051,120]
[358448134,1745160635884,-2894.35104774,0.00051,30]
[358448135,1745160635894,-600.0,0.00051058,60]
[358448136,1745160635903,-1030.5716969,0.00051099,90]
[358448137,1745160635913,-2000.0,0.000511,2]
[358448138,1745160635922,-152.0,0.00051153,4]
[358448139,1745160635931,-500.0,0.00051224,60]
[358448140,1745160635941,-407.7143651,0.00051254,60]
[358448141,1745160635950,-500.0,0.00051297,60]
[358448142,1745160635959,-151.0,0.000513,120]
[358448143,1745160635969,-600.0,0.00051301,60]
[358448144,1745160635978,-500.0,0.0005134,60]
[358448145,1745160635988,-684.0,0.00051496,120]
[358448146,1745160635997,-684.0,0.00051496,120]
[358448147,1745160636007,-500.0,0.0005156,60]
[358448148,1745160636016,-600.0,0.0005158,60]
[358448149,1745160636026,-600.0,0.00051669,60]
[358448150,1745160636035,-500.0,0.00051716,60]
[358448151,1745160636045,-471.0,0.00051768,13]
[358448152,1745160636054,-200.0,0.00051768,2]
[358448153,1745160636064,-200.0,0.00051768,2]
[358448154,1745160636073,-200.0,0.00051768,2]
[358448155,1745160636082,-200.0,0.00051768,2]
[358448156,1745160636092,-200.0,0.00051768,2]
[358448157,1745160636101,-200.0,0.00051768,2]
[358448158,1745160636110,-200.0,0.00051768,2]
[358448159,1745160636120,-200.0,0.00051768,2]
[358448160,1745160636129,-200.0,0.00051768,2]
[358448161,1745160636139,-200.0,0.00051768,2]
[358448162,1745160636148,-200.0,0.00051768,2]
[358448163,1745160636158,-200.0,0.00051768,2]
[358448164,1745160636166,-200.0,0.00051768,2]
[358448165,1745160636176,-200.0,0.00051768,2]
[358448166,1745160636185,-200.0,0.00051768,2]
[358448167,1745160636196,-200.0,0.00051768,2]
[358448168,1745160636206,-200.0,0.00051768,2]
[358448169,1745160636215,-200.0,0.00051768,2]
[358448170,1745160636224,-200.0,0.00051768,2]
[358448171,1745160636233,-200.0,0.00051768,2]
[358448172,1745160636242,-200.0,0.00051768,2]
[358448173,1745160636252,-200.0,0.00051768,2]
[358448174,1745160636261,-200.0,0.00051768,2]
[358448175,1745160636270,-200.0,0.00051768,2]
[358448176,1745160636279,-200.0,0.00051768,2]
[358448177,1745160636288,-200.0,0.00051768,2]
[358448178,1745160636298,-200.0,0.00051768,2]
[358448179,1745160636307,-200.0,0.00051768,2]
[358448180,1745160636316,-200.0,0.00051768,2]
[358448181,1745160636326,-200.0,0.00051768,2]
[358448182,1745160636335,-200.0,0.00051768,2]
[358448183,1745160636345,-200.0,0.00051768,2]
[358448184,1745160636354,-200.0,0.00051768,2]
[358448185,1745160636363,-200.0,0.00051768,2]
[358448186,1745160636372,-318.0,0.00051768,2]
[358448187,1745160636381,-152.13851039,0.00051781,15]
[358448188,1745160636391,-600.0,0.00051804,60]